Cogmind - Beta 17 *** ADVENTURER MODE // 2026.08.22 @ 05:33:02 Player: F-forge Result: Destroyed by G-67 Veteran with Plasma Rifle Performance ------------- Evolutions (6) 3000 Regions Visited (14) 2800 Robots Destroyed (287) 1435 Value Destroyed (7897) 7897 Prototype IDs (23) 460 Alien Tech Used (2) 400 Bonus (1027) 1027 TOTAL SCORE: 17019 Bonus ------- High Alert Combat Kills 74 Follower Combat Kills 775 Met Zhirov 300 Friendly Fire -122 Cogmind --------- Core Integrity 0/1150 Matter 300/300 Energy 100/100 System Corruption 4% Temperature Cool (12) Movement Walking (120) Location -4/Factory Parts ------- > --- POWER (2) -------- (None) > --- PROPULSION (5) --- Myomer Leg > --- UTILITY (10) ----- (None) > --- WEAPON (2) ------- (None) > --- INVENTORY (5) ---- Advanced Power Amplifier Advanced Terrain Scanner Improved Remote Datajack Molecular Deconstructor Peak State ------------ > --- POWER ------------ Light Ion Engine Fusion Reactor > --- PROPULSION ------- Carbon-fiber Leg Carbon-fiber Leg Flexi-carbon Leg Thunder Leg > --- UTILITY ---------- Large Storage Unit Visual Processing Unit Improved Signal Interpreter Advanced Targeting Computer Core Analyzer Advanced Transmission Jammer Experimental Propulsion Shielding Layered Medium Armor Plating Medium Reflective Plating Advanced System Shield > --- WEAPON ----------- Hardcell Cannon Heavy Gauss Cannon > --- INVENTORY -------- Advanced Power Amplifier Advanced Terrain Scanner Weapon Mount Phase Cannon Heavy Missile Launcher Improved Remote Datajack Molecular Deconstructor Chainsword Lance [Rating: 86] Favorites ----------- Power Heavy Deuterium Engine Engine Heavy Deuterium Engine Power Core Neutrino Core Reactor Fusion Reactor Propulsion Carbon-fiber Leg Leg Carbon-fiber Leg Hover Unit Improved Hover Unit Flight Unit VTOL Module Utility Visual Processing Unit Device Improved Sensor Array Storage Large Storage Unit Processor Visual Processing Unit Hackware Hacking Suite Protection Improved Medium Armor Plating Weapon KE Penetrator Energy Gun Beamcaster Energy Cannon Phase Cannon Ballistic Gun KE Penetrator Ballistic Cannon Magnetic Acceleration Cannon Launcher Heavy Missile Launcher Special Weapon Remote Datajack Impact Weapon Flail Slashing Weapon Katana Piercing Weapon Lance Special Melee Weapon Datajack Build | -11 -10 -9 -8 -8 -7 -6 -6 -6 -5 -5 -5 -5 -4 -4 ------- Run | Yrd Mat Mat Mat Sto Fac Fac Low Low Fac Upp Upp Zhi Pro Fac Slots Evolved 12 | . . 2 2 . 2 2 . . 2 . . . . 2 Power 1 | . . . . . . 1 . . . . . . . . Propulsion 3 | . . 2 . . . . . . . . . . . 1 Utility 8 | . . . 2 . 2 1 . . 2 . . . . 1 Weapon . | . . . . . . . . . . . . . . . Parts Attached 165 | 9 1 16 7 40 23 3 6 2 15 7 1 4 4 27 Power 24 | 2 . 2 . 4 1 1 1 . 4 1 . 1 1 6 Engine 16 | 2 . 2 . 4 1 1 . . 2 1 . . 1 2 Core 6 | . . . . . . . 1 . 2 . . . . 3 Reactor 2 | . . . . . . . . . . . . 1 . 1 Propulsion 50 | 2 . 11 1 15 5 1 2 . 3 3 . . . 7 Treads . | . . . . . . . . . . . . . . . Leg 37 | 2 . 3 1 15 5 1 2 . 3 3 . . . 2 Wheel . | . . . . . . . . . . . . . . . Hover 11 | . . 8 . . . . . . . . . . . 3 Flight 2 | . . . . . . . . . . . . . . 2 Utility 45 | 2 1 1 3 4 9 1 1 1 6 3 . 2 2 9 Device 17 | 1 . . 1 1 5 1 . . 2 . . 1 1 4 Storage 4 | 1 1 . . 1 1 . . . . . . . . . Processor 8 | . . . 1 . 2 . 1 . 1 1 . . . 2 Hackware 3 | . . . . . 1 . . . . 1 . . . 1 Protection 13 | . . 1 1 2 . . . 1 3 1 . 1 1 2 Artifact . | . . . . . . . . . . . . . . . Weapon 46 | 3 . 2 3 17 8 . 2 1 2 . 1 1 1 5 Energy Gun 7 | 2 . . . 5 . . . . . . . . . . Energy Cannon 2 | . . . . 1 . . . . . . . 1 . . Ballistic Gun 14 | 1 . 1 2 5 . . 1 . 2 . . . . 2 Ballistic Cannon 7 | . . . . 1 3 . 1 . . . . . 1 1 Launcher 4 | . . . . 2 2 . . . . . . . . . Special Weapon 4 | . . . . . 1 . . 1 . . 1 . . 1 Impact Weapon 1 | . . 1 . . . . . . . . . . . . Slashing Weapon 4 | . . . 1 1 2 . . . . . . . . . Piercing Weapon 1 | . . . . . . . . . . . . . . 1 Special Melee Weapon 2 | . . . . 2 . . . . . . . . . . Unidentified Prototypes 14 | . . 1 . 6 1 . . 1 . . . 4 . 1 Corrupted Parts 1 | . . 1 . . . . . . . . . . . . System Corruption 1 | . . 1 . . . . . . . . . . . . Parts Lost 70 | . . 6 2 5 . . 8 1 3 5 2 . 3 35 Power 15 | . . . . 2 . . 1 . 2 1 . . 1 8 Propulsion 19 | . . 4 . 1 . . 3 1 1 1 1 . . 7 Utility 19 | . . 1 1 1 . . 1 . . 3 . . 1 11 Weapon 17 | . . 1 1 1 . . 3 . . . 1 . 1 9 Highest Loss Streak 18 | . . 4 1 3 . . 3 1 2 2 2 . 2 18 To Critical Strikes . | . . . . . . . . . . . . . . . Average Backups 11 | 1 6 9 9 9 11 14 14 14 13 13 12 13 13 7 Power . | . 1 1 1 . . . . . . 1 1 . . . Propulsion . | . . . . . . . . . . . . . . . Utility 5 | . 2 5 3 5 4 7 8 8 6 6 6 5 6 3 Weapon 4 | 1 1 . 3 2 4 5 5 4 5 5 4 6 5 3 Tool/Special . | . . . . . . . . . . . . . . . Unused Backups 16 | 1 2 1 1 3 2 . . 1 1 . . 2 1 1 Power 1 | 1 . . . . . . . . . . . . . . Propulsion . | . . . . . . . . . . . . . . . Utility 12 | . 1 1 1 2 2 . . 1 1 . . 2 . 1 Weapon 3 | . 1 . . 1 . . . . . . . . 1 . Tool/Special . | . . . . . . . . . . . . . . . Average Slot Usage (%) 94 | . 100 97 98 98 99 99 97 98 92 98 96 82 88 64 Engine 7 | . 14 11 8 8 7 13 10 6 5 7 5 5 4 1 Core 1 | . . . . . . . 1 6 3 2 5 4 . 1 Leg 25 | . 28 32 35 35 29 26 24 25 18 22 19 17 17 10 Device 10 | . 14 2 8 9 14 19 14 6 10 5 11 11 10 5 Storage 6 | . 14 11 9 9 7 6 6 6 5 5 5 5 5 4 Processor 17 | . . . 9 9 15 13 18 20 22 28 29 29 28 20 Hackware 3 | . . . . . 5 6 6 6 5 4 . . . 2 Protection 3 | . . 8 8 8 1 . . 6 3 4 5 4 5 4 Ballistic Gun 6 | . 14 10 10 12 3 . 2 5 8 10 7 . 4 2 Ballistic Cannon 4 | . . . . . 10 12 8 . . . . . . 2 Peak Build Rating 86 | 7 8 16 22 36 57 67 68 70 76 74 78 73 74 86 Average Rating 52 | 6 7 12 20 29 52 66 63 62 64 69 69 59 70 57 On Entrance 44 | . 7 8 14 21 33 56 67 63 56 65 73 67 73 64 Avg Prop Armor Cover (%) 7 | . . . . . . . . . . . . . . 7 Naked Turns 3 | . . . . . . . . . . . . . . 3 Heaviest Build 67 | 15 20 26 27 33 52 59 60 65 65 61 63 63 60 67 Greatest Support 90 | 20 20 40 45 60 85 90 90 75 75 70 70 50 50 73 Greatest Overweight (x) 11 | 1 . 2 . . . . . 4 1 . 1 1 1 11 Average Overweight (x) . | . . . . . . . . . . . . . . 1 Largest Inventory Capacity 15 | 8 10 10 10 10 15 15 15 15 15 15 15 15 15 15 Average Capacity 13 | 7 9 10 10 10 12 15 15 15 15 15 15 15 15 14 Most Carried 15 | 4 10 10 10 10 15 15 15 15 15 15 15 15 15 13 Average Carried 12 | 1 6 9 9 9 11 14 14 14 14 14 13 14 14 8 Final Capacity 15 | 8 10 10 10 10 15 15 15 15 15 15 15 15 15 5 Final Carried 15 | 4 10 10 10 10 15 15 14 15 15 14 14 13 13 5 Class Distribution -------------------- 38% | Hacker-Skirmisher 20% | Scavenger-Skirmisher 19% | Scavenger-Mutant 10% | Mutant 3% | Hacker-Mutant 3% | Commander-Mutant Dominant Class ---------------- Mutant | -10/Materials Mutant | -9/Materials Scavenger-Mutant | -8/Materials Scavenger-Mutant | -8/Storage Hacker-Skirmisher | -7/Factory Hacker-Skirmisher | -6/Factory Hacker-Skirmisher | -6/Lower Caves Hacker-Skirmisher | -6/Lower Caves Hacker-Skirmisher | -5/Factory Scavenger-Skirmisher | -5/Upper Caves Scavenger-Skirmisher | -5/Upper Caves Scavenger-Mutant | -5/Zhirov Scavenger-Mutant | -4/Proximity Caves Hacker-Mutant | -4/Factory Resources | -11 -10 -9 -8 -8 -7 -6 -6 -6 -5 -5 -5 -5 -4 -4 ----------- Run | Yrd Mat Mat Mat Sto Fac Fac Low Low Fac Upp Upp Zhi Pro Fac Matter Collected 6602 | 340 20 279 260 1151 1511 279 702 69 426 638 110 . 254 563 Remotely . | . . . . . . . . . . . . . . . Salvage Created 9672 | 191 53 1463 386 1869 1627 283 637 . 1282 939 57 . 176 709 Parts 478 | 8 8 63 20 107 94 16 26 . 68 27 . . 7 34 Haulers Intercepted 19 | . . 4 2 5 4 1 . . 2 1 . . . . Recyclers Shooed 6 | . 1 1 . 2 1 1 . . . . . . . . Parts Field Recycled . | . . . . . . . . . . . . . . . Retrieved Matter . | . . . . . . . . . . . . . . . Parts Self-Destructed 43 | . . . . . . . 19 . . 17 . . 7 . Prevented 1 | . . . . . . . 1 . . . . . . . Parts Restored . | . . . . . . . . . . . . . . . Kills | -11 -10 -9 -8 -8 -7 -6 -6 -6 -5 -5 -5 -5 -4 -4 ------- Run | Yrd Mat Mat Mat Sto Fac Fac Low Low Fac Upp Upp Zhi Pro Fac Combat Hostiles Destroyed 152 | . . 25 7 25 26 1 16 . 17 19 1 . 4 11 Melee 26 | . . 8 1 6 4 . 4 . . 1 . . . 2 Guns 55 | . . 6 6 11 5 . . . 13 9 . . 2 3 Cannons 28 | . . . . 1 13 1 5 . . . . . 2 6 AOE 31 | . . . . 7 4 . 7 . 4 9 . . . . Classes Destroyed 18 | 3 1 6 1 4 1 . 2 . . . . . . . Worker 46 | 2 1 13 1 13 9 2 . . 5 . . . . . Builder 17 | . . 7 2 3 3 . . . 2 . . . . . Tunneler 6 | 3 . . 1 . 1 . . . . . . . . 1 Hauler 19 | . . 4 2 5 4 1 . . 2 1 . . . . Recycler 18 | 1 . 2 . 5 5 1 . . 3 . . . . 1 Mechanic 3 | . . . . 1 . . . . 2 . . . . . Operator 8 | . . 2 . 2 2 1 . . . 1 . . . . Watcher 18 | . 2 5 1 2 6 1 . . . . . . . 1 Swarmer 45 | . . 12 3 6 3 . 5 . 9 4 . . 2 1 Grunt 51 | . . 8 2 6 11 . 6 . 3 15 . . . . Brawler 3 | . . . . 2 . . . . . . . . . 1 Duelist 6 | . . . 1 3 1 . 1 . . . . . . . Protector 2 | . . . . 2 . . . . . . . . . . Sentry 16 | . . 5 1 5 1 . 2 . 1 . 1 . . . Hunter 7 | . . . . 1 . . 1 . . . . . . 5 Programmer 21 | . . . . . 10 1 . . 4 . . . 2 4 Behemoth 1 | . . . . . . . 1 . . . . . . . Decomposer 4 | . . . . . . . 3 . . 1 . . . . Packrat 1 | . . . . . . . . . . 1 . . . . Samaritan 3 | . . . . . . . 2 . . 1 . . . . Best Kill Streak 8 | 4 2 8 6 7 7 2 4 . 7 5 1 . 2 3 Combat Bots Only 6 | . . 6 4 4 4 1 4 . 5 5 1 . 2 2 Max Kills in Single Turn 7 | 1 1 1 1 3 2 1 2 . 7 3 1 . 1 1 Gunslinging 1 | . . . . 1 . . . . 1 1 . . . . Exploded 3 | . . . . 2 2 . 2 . 2 3 . . . . Melee 1 | . . 1 1 1 1 . 1 . . 1 . . . 1 Uniques/NPCs Destroyed . | . . . . . . . . . . . . . . . Combat | -11 -10 -9 -8 -8 -7 -6 -6 -6 -5 -5 -5 -5 -4 -4 -------- Run | Yrd Mat Mat Mat Sto Fac Fac Low Low Fac Upp Upp Zhi Pro Fac Hostile Shots Fired 1284 | . . 150 37 122 73 . 169 16 48 133 10 . 88 438 Missed 430 | . . 44 7 37 33 . 57 6 15 53 2 . 29 147 Hits 854 | . . 106 30 85 40 . 112 10 33 80 8 . 59 291 Melee 16 | . . . 2 6 3 . . . . . . . . 5 Projectile 838 | . . 106 28 79 37 . 112 10 33 80 8 . 59 286 AOE 1 | . . 1 . . . . . . . . . . . . Critical Strikes 23 | . . . 2 5 5 . 1 1 2 1 . . . 6 Part Disruptions 3 | . . . . . . . . 2 . . . . . 1 Damage Taken 11032 | . . 965 324 1091 650 . 1325 128 605 1024 153 . 724 4043 Core 2091 | . . 164 23 69 114 . 185 16 132 80 40 . 109 1159 Absorbed by Shields . | . . . . . . . . . . . . . . . Redirected to Shielding 153 | . . . . . . . . . . . . . 140 13 Ignored by Resistances 3161 | . . 298 92 310 183 . 375 39 169 288 40 . 205 1162 Regen/Repaired (Parts) 300 | . . 77 . 60 163 . . . . . . . . . Core Remaining (%) 79 | 100 100 59 . 83 83 . . 76 . . . . 58 . Volleys Fired 505 | 17 4 37 24 81 103 15 48 7 40 44 6 . 20 59 Largest 2 | 1 1 1 2 2 2 2 2 1 2 2 2 . 1 2 Hottest 140 | 20 20 23 48 100 84 84 88 30 72 78 66 . 51 140 Shots Fired 769 | 17 4 37 41 131 170 27 70 7 73 82 9 . 20 81 Gun 455 | 17 4 37 41 108 50 . 9 2 67 70 6 . 10 34 Cannon 240 | . . . . 9 108 24 43 . . . . . 10 46 Launcher 52 | . . . . 14 9 . 10 . 6 12 . . . 1 Special 22 | . . . . . 3 3 8 5 . . 3 . . . Kinetic 642 | 17 4 37 41 83 158 24 52 2 67 70 6 . 20 61 Thermal 48 | . . . . 29 . . . . . . . . . 19 Explosive 52 | . . . . 14 9 . 10 . 6 12 . . . 1 Electromagnetic 5 | . . . . 5 . . . . . . . . . . Robot Hit Streak 41 | 8 11 17 15 15 34 4 10 . 13 41 10 . 13 21 Robot Miss Streak 5 | 2 . 3 4 2 4 3 3 1 3 2 . . 2 5 Penetration Max 1 | . . . . . . . . . 1 1 . . . 1 Secondary Targets 10 | . . . 1 2 . . . . 3 4 . . . . Max Gunslinging Chain 1 | . . . 1 1 . . . . 1 1 . . . . Shots Hit Robots 754 | 15 4 112 43 151 142 15 57 . 57 61 9 . 16 72 Core Hits 377 | 7 4 25 18 81 68 8 32 . 38 57 1 . 6 32 Critical Kills 7 | . . 4 . . . . . . 1 1 . . . 1 Critical Parts Destroyed 22 | 1 . 17 1 . . . . . 1 1 . . . 1 Critical Strikes 59 | 1 . 21 1 9 11 1 4 . 4 2 . . 1 4 Burn 2 | . . . . 2 . . . . . . . . . . Meltdown 1 | . . . . . . . . . . . . . . 1 Destroy 6 | 1 . . . . . . . . 2 2 . . . 1 Blast 19 | . . . . . 11 1 4 . . . . . 1 2 Smash 22 | . . 21 1 . . . . . . . . . . . Sever 9 | . . . . 7 . . . . 2 . . . . . Melee Attacks 197 | . . 93 14 54 17 . 6 . 5 1 . . . 7 Impact 96 | . . 93 3 . . . . . . . . . . . Slashing 91 | . . . 11 51 17 . 6 . 5 1 . . . . Piercing 7 | . . . . . . . . . . . . . . 7 Sneak Attacks 55 | . . 27 6 14 6 . . . 1 . . . . 1 Combat Hostiles 1 | . . . . . 1 . . . . . . . . . Follow-up Attacks . | . . . . . . . . . . . . . . . Damage Inflicted 26048 | 185 51 4438 1236 4174 4564 602 2129 . 2869 2918 130 . 510 2242 Guns 6999 | 185 51 347 536 1459 577 . 179 . 1356 1200 130 . 214 765 Cannons 5126 | . . . . 204 2361 352 824 . . . . . 296 1089 Explosions 5761 | . . 85 . 543 851 250 922 . 1296 1680 . . . 134 Melee 8155 | . . 4006 700 1968 768 . 204 . 217 38 . . . 254 Ramming 7 | . . . . . 7 . . . . . . . . . Kinetic 11173 | 185 51 347 536 1144 2938 352 1003 . 1356 1200 130 . 510 1421 Thermal 2141 | . . 85 . 412 . 250 . . 961 . . . . 433 Explosive 4465 | . . . . 543 851 . 922 . 335 1680 . . . 134 Electromagnetic 107 | . . . . 107 . . . . . . . . . . Impact 4214 | . . 4006 208 . . . . . . . . . . . Slashing 3687 | . . . 492 1968 768 . 204 . 217 38 . . . . Piercing 254 | . . . . . . . . . . . . . . 254 Highest Corruption 4 | . . 1 . . 4 . . 2 2 2 2 2 2 4 Average Corruption 2 | . . 1 . . 2 . . 1 1 2 2 2 2 1 Corruption Purged . | . . . . . . . . . . . . . . . Corruption Blocked 2 | . . . . . . . . . . . . . 2 . Effects 121 | . . . . . 47 . . . 8 24 14 5 13 10 Message Errors 40 | . . . . . 16 . . . 2 6 6 2 2 6 Matter Fused 22 | . . . . . 9 . . . 1 3 4 1 3 1 Heat Flow Errors 20 | . . . . . 8 . . . 4 2 2 1 2 1 Energy Discharges 19 | . . . . . 8 . . . 1 3 1 1 4 1 Data Loss (minor) 8 | . . . . . 2 . . . . 3 1 . 1 1 Data Loss (major) 5 | . . . . . 3 . . . . 2 . . . . Misfires 3 | . . . . . 1 . . . . 2 . . . . Alerts 2 | . . . . . . . . . . 1 . . 1 . Weapon Failures 2 | . . . . . . . . . . 2 . . . . Overload Shots . | . . . . . . . . . . . . . . . Overflow Damage 2960 | . . 1755 267 150 365 24 27 . 333 3 . . 11 25 Projectiles 202 | . . . . . 175 . 16 . . . . . 11 . Explosions 389 | . . . . . 33 24 11 . 318 3 . . . . Melee 2369 | . . 1755 267 150 157 . . . 15 . . . . 25 Knockbacks 48 | . . 12 . 2 24 . 5 . . . . . 2 3 Impact 12 | . . 12 . . . . . . . . . . . . Kinetic 36 | . . . . 2 24 . 5 . . . . . 2 3 Secondary . | . . . . . . . . . . . . . . . Self-Inflicted Damage 322 | . . 100 . 24 35 . 60 . 103 . . . . . Shots 9 | . . 2 . 1 1 . 2 . 3 . . . . . Rammed . | . . . . . . . . . . . . . . . Targets Rammed 3 | . . . . . 3 . . . . . . . . . Kicked 3 | . . . . . 3 . . . . . . . . . Crushed . | . . . . . . . . . . . . . . . Highest Temperature 300 | . . 15 3 300 262 45 126 10 269 264 228 195 214 113 Average Temperature 48 | . . 15 3 57 32 17 31 10 99 60 102 108 103 81 Received Heat Transfer 2109 | . . 270 126 504 132 . 345 . 36 285 27 . 18 366 Effects 5 | . . . . 3 2 . . . . . . . . . Energy Bleed 2 | . . . . . 2 . . . . . . . . . Interference 3 | . . . . 3 . . . . . . . . . . Siege Activations . | . . . . . . . . . . . . . . . Martial Activations . | . . . . . . . . . . . . . . . Shielding Activations . | . . . . . . . . . . . . . . . Robots Disrupted . | . . . . . . . . . . . . . . . Combat Hostiles . | . . . . . . . . . . . . . . . Robots Corrupted 25 | . . 23 2 . . . . . . . . . . . Combat Hostiles 11 | . . 11 . . . . . . . . . . . . Parts Fried 39 | . . 35 4 . . . . . . . . . . . Impact Corruptions 70 | . . 64 6 . . . . . . . . . . . Robots Melted 1 | . . . . . . . . . . . . . . 1 Combat Hostiles . | . . . . . . . . . . . . . . . Parts Melted 5 | . . . . . . . 1 . . 1 . . . 3 Heat Transferred 2199 | . . 100 . 831 . 150 . . 600 . . . . 518 Parts Sabotaged . | . . . . . . . . . . . . . . . Parts Stolen . | . . . . . . . . . . . . . . . Parts Stripped . | . . . . . . . . . . . . . . . Power Chain Reactions . | . . . . . . . . . . . . . . . Alert | -11 -10 -9 -8 -8 -7 -6 -6 -6 -5 -5 -5 -5 -4 -4 ------- Run | Yrd Mat Mat Mat Sto Fac Fac Low Low Fac Upp Upp Zhi Pro Fac Maximum Alert Level 2 | . . 2 1 2 . . . . 1 . . . . . Low Security (%) 69 | 100 100 24 96 20 100 100 . . 38 . . . . 100 Level 1 22 | . . 70 3 37 . . . . 61 . . . . . Level 2 7 | . . 5 . 42 . . . . . . . . . . Level 3 . | . . . . . . . . . . . . . . . Level 4 . | . . . . . . . . . . . . . . . Level 5 . | . . . . . . . . . . . . . . . High Security . | . . . . . . . . . . . . . . . Max Security . | . . . . . . . . . . . . . . . Peak Influence 499 | 10 14 421 226 499 162 69 . . 356 . . . . 80 Initial 152 | . . . 126 81 152 . . . . . . . . . Average 127 | 1 1 228 123 334 49 7 . . 176 . . . . 9 Influence Increases 6682 | 30 23 1036 310 1420 1343 164 395 . 908 490 20 . 90 453 Destroy 0b10 Robot/C 3440 | . . 500 140 760 640 20 320 . 360 380 20 . 80 220 Destroy 0b10 Robot/NC 685 | 30 15 165 35 165 155 30 . . 70 5 . . . 15 Destroy Leader 812 | . 4 148 36 214 190 14 30 . 74 30 . . 10 62 Allied During Kill 105 | . . . . 85 20 . . . . . . . . . Successful Hack 200 | . 4 22 . 14 116 . . . 32 . . . . 12 Disable Machine 360 | . . 36 9 45 54 27 . . 171 . . . . 18 Destroy Structure 480 | . . 45 . 77 93 43 . . 186 . . . . 36 Partial Spotted 15 | . . . . . . 15 . . . . . . . . Lose Combat Pursuer 585 | . . 120 90 60 75 15 45 . 15 75 . . . 90 Influence Decreases 6677 | 30 23 685 435 1255 1734 110 449 . 640 688 90 . 90 448 Entered New Map 775 | . . . 225 145 239 . 25 . . 121 20 . . . Time Decay 5144 | 30 23 625 190 940 1415 110 374 . 530 527 70 . 90 220 Lost Part 468 | . . 60 20 50 . . 50 . 30 40 . . . 218 Lost Ally 290 | . . . . 120 80 . . . 80 . . . . 10 Squads Dispatched 45 | . . 5 1 6 20 2 . . 8 . . . . 3 Investigation 14 | . . 4 . 1 5 . . . 3 . . . . 1 Extermination 15 | . . . . . 9 1 . . 3 . . . . 2 Reinforcement 13 | . . 1 1 2 6 1 . . 2 . . . . . Assault 2 | . . . . 2 . . . . . . . . . . Garrison 1 | . . . . 1 . . . . . . . . . . Intercept . | . . . . . . . . . . . . . . . Searches Triggered . | . . . . . . . . . . . . . . . Construction Impeded 3 | . . . . . 2 . . . 1 . . . . . Haulers Reinforced 2 | . . . . . 1 . . . 1 . . . . . Active Scanning Responses . | . . . . . . . . . . . . . . . Cargo Convoy Interrupts . | . . . . . . . . . . . . . . . Stealth | -11 -10 -9 -8 -8 -7 -6 -6 -6 -5 -5 -5 -5 -4 -4 --------- Run | Yrd Mat Mat Mat Sto Fac Fac Low Low Fac Upp Upp Zhi Pro Fac Distress Signals 13 | . . 1 3 5 1 . . . 1 . . . . 2 Communications Jammed 1 | . . . . . . . . . . . . . . 1 Distress Signals . | . . . . . . . . . . . . . . . Times Spotted 274 | . 2 45 18 52 46 6 19 5 20 25 1 . 7 28 Peak Tracking Total 7 | . 2 7 5 7 5 1 7 5 4 5 1 . 3 7 Tactical Retreats 27 | . . 6 3 3 2 1 2 . 1 5 . . . 4 Traps | -11 -10 -9 -8 -8 -7 -6 -6 -6 -5 -5 -5 -5 -4 -4 ------- Run | Yrd Mat Mat Mat Sto Fac Fac Low Low Fac Upp Upp Zhi Pro Fac Traps Triggered 6 | . . . 2 . 1 . . . 3 . . . . . Indirectly . | . . . . . . . . . . . . . . . Trap Hack Attempts . | . . . . . . . . . . . . . . . Triggered . | . . . . . . . . . . . . . . . Disarmed . | . . . . . . . . . . . . . . . Reprogrammed . | . . . . . . . . . . . . . . . Reused . | . . . . . . . . . . . . . . . Traps Extracted . | . . . . . . . . . . . . . . . Installed . | . . . . . . . . . . . . . . . Triggered . | . . . . . . . . . . . . . . . Objects Rigged 7 | . . . . . . 7 . . . . . . . . Exploded 1 | . . . . . . 1 . . . . . . . . Machines | -11 -10 -9 -8 -8 -7 -6 -6 -6 -5 -5 -5 -5 -4 -4 ---------- Run | Yrd Mat Mat Mat Sto Fac Fac Low Low Fac Upp Upp Zhi Pro Fac Machines Disabled 41 | . . 4 1 5 6 3 . 1 19 . . . . 2 Max in Single Turn 19 | . . 3 1 2 1 2 . 1 19 . . . . 1 Garrison Access 2 | . . . . 1 1 . . . . . . . . . Machines Repaired . | . . . . . . . . . . . . . . . Machines Dismantled . | . . . . . . . . . . . . . . . Machines Sabotaged . | . . . . . . . . . . . . . . . Overloaded Fab Kills . | . . . . . . . . . . . . . . . Hacking | -11 -10 -9 -8 -8 -7 -6 -6 -6 -5 -5 -5 -5 -4 -4 --------- Run | Yrd Mat Mat Mat Sto Fac Fac Low Low Fac Upp Upp Zhi Pro Fac Machines Accessed 71 | . 1 10 1 12 23 3 . . 6 1 1 9 . 4 Terminals 36 | . 1 8 . 8 11 2 . . 4 . . . . 2 Fabricators 3 | . . . . . 1 . . . 1 . . . . 1 Repair Stations 6 | . . 1 . 1 4 . . . . . . . . . Recycling Units 7 | . . . . 2 4 1 . . . . . . . . Scanalyzers 4 | . . 1 . . 2 . . . 1 . . . . . Garrison Access 4 | . . . 1 1 1 . . . . . . . . 1 Total Hacks 196 | . 2 25 4 24 52 6 . . 19 1 1 48 . 14 Successful 134 | . 2 13 . 15 34 4 . . 11 1 1 48 . 5 Failed 62 | . . 12 4 9 18 2 . . 8 . . . . 9 Catastrophic 8 | . . 1 . 2 1 . . . . . . . . 4 Database Lockouts . | . . . . . . . . . . . . . . . Manual 20 | . 1 3 1 1 4 1 . 1 7 . . 1 . . Terminals 82 | . 2 20 . 16 21 4 . . 13 . . . . 6 Fabricators 10 | . . . . . 2 . . . 2 . . . . 6 Repair Stations 15 | . . 2 . 3 10 . . . . . . . . . Recycling Units 16 | . . . . 4 10 2 . . . . . . . . Scanalyzers 14 | . . 3 . . 7 . . . 4 . . . . . Garrison Access 9 | . . . 4 1 2 . . . . . . . . 2 Terminal Hacks 87 | . 1 8 . 8 14 2 . . 2 1 1 48 . 2 Record 38 | . . 1 . . . . . . . . . 36 . 1 Part Schematic 5 | . . . . . . . . . 1 . . 4 . . Robot Schematic 1 | . . . . . 1 . . . . . . . . . Robot Analysis 6 | . . . . . 2 . . . . . . 4 . . Prototype ID Bank 4 | . . . . . . . . . . . . 4 . . Open Door 5 | . . . . 2 . 1 . . . 1 1 . . . Open DSF 2 | . . . . . 2 . . . . . . . . . Level Access Points 1 | . . . . . . . . . 1 . . . . . Emergency Access Points 1 | . . 1 . . . . . . . . . . . . Terminal Index 1 | . . . . 1 . . . . . . . . . . Scanalyzer Index 2 | . . . . 1 1 . . . . . . . . . Alert Level 1 | . . . . . . . . . . . . . . 1 Locate Traps 6 | . 1 1 . 2 2 . . . . . . . . . Patrol Status 1 | . . . . . 1 . . . . . . . . . Recall Investigation 2 | . . 1 . . 1 . . . . . . . . . Recall Reinforcements 2 | . . . . . 1 1 . . . . . . . . Hauler Manifests 2 | . . 2 . . . . . . . . . . . . Zone Layout 7 | . . 2 . 2 3 . . . . . . . . . Fabricator Hacks 6 | . . . . . 1 . . . 2 . . . . 3 Load Schematic 2 | . . . . . . . . . 1 . . . . 1 Build 4 | . . . . . 1 . . . 1 . . . . 2 Repair Station Hacks 11 | . . 2 . 2 7 . . . . . . . . . Scan Component 6 | . . 1 . 1 4 . . . . . . . . . Repair 5 | . . 1 . 1 3 . . . . . . . . . Recycling Unit Hacks 10 | . . . . 4 5 1 . . . . . . . . Report Inventory 6 | . . . . 2 4 . . . . . . . . . Retrieve Components 4 | . . . . 2 1 1 . . . . . . . . Scanalyzer 11 | . . 3 . . 4 . . . 4 . . . . . Insert Component 2 | . . . . . 1 . . . 1 . . . . . Analyze 1 | . . . . . . . . . 1 . . . . . Retrieve Study 8 | . . 3 . . 3 . . . 2 . . . . . Garrison Access Hacks 2 | . . . . 1 1 . . . . . . . . . Seal Access 2 | . . . . 1 1 . . . . . . . . . Unauthorized Hacks 7 | . 1 . . . 2 1 . . 3 . . . . . Terminals 6 | . 1 . . . 1 1 . . 3 . . . . . Assimilate 3 | . . . . . . . . . 3 . . . . . Botnet 2 | . 1 . . . 1 . . . . . . . . . Detonate 1 | . . . . . . 1 . . . . . . . . Fabricators . | . . . . . . . . . . . . . . . Repair Stations . | . . . . . . . . . . . . . . . Recycling Units 1 | . . . . . 1 . . . . . . . . . Mask 1 | . . . . . 1 . . . . . . . . . Scanalyzers . | . . . . . . . . . . . . . . . Garrison Access . | . . . . . . . . . . . . . . . Data Cores Recovered . | . . . . . . . . . . . . . . . Used . | . . . . . . . . . . . . . . . Hacking Detections 47 | . . 9 1 8 17 2 . . 6 . . . . 4 Full Trace Events 13 | . . 3 1 1 5 . . . 2 . . . . 1 Feedback Events . | . . . . . . . . . . . . . . . Feedback Blocked . | . . . . . . . . . . . . . . . Robot Schematics Acquired 1 | . . . . . 1 . . . . . . . . . Robots Built 4 | . . . . . . . . . 3 . . . . 1 Authchips . | . . . . . . . . . . . . . . . Time 236 | . . . . . . . . . 49 . . . . 187 Total Robot Build Rating 13 | . . . . . . . . . 6 . . . . 7 Part Schematics Acquired 6 | . . . . . . . . . 2 . . 4 . . Parts Built 2 | . . . . . 2 . . . . . . . . . Authchips . | . . . . . . . . . . . . . . . Time 153 | . . . . . 58 . . . . . . . . 95 Total Part Build Rating 14 | . . . . . 14 . . . . . . . . . Part Studies Acquired 7 | . . 3 . . 2 . . . 2 . . . . . Parts Repaired 5 | . . 1 . 1 3 . . . . . . . . . Time 146 | . . 32 . 13 101 . . . . . . . . . Parts Recycled . | . . . . . . . . . . . . . . . Recycled Matter . | . . . . . . . . . . . . . . . Retrieved Matter . | . . . . . . . . . . . . . . . Retrieved Components 14 | . . . . 6 7 1 . . . . . . . . Parts Scanalyzed 2 | . . . . . 1 . . . 1 . . . . . Part Schematics Acquired 1 | . . . . . . . . . 1 . . . . . Parts Damaged . | . . . . . . . . . . . . . . . Bothacking | -11 -10 -9 -8 -8 -7 -6 -6 -6 -5 -5 -5 -5 -4 -4 ------------ Run | Yrd Mat Mat Mat Sto Fac Fac Low Low Fac Upp Upp Zhi Pro Fac Used RIF Installer . | . . . . . . . . . . . . . . . Robots Hacked 3 | . . . . . 1 1 1 . . . . . . . Non-combat 2 | . . . . . 1 . 1 . . . . . . . Combat 1 | . . . . . . 1 . . . . . . . . Robot Hacks Applied 4 | . . . . . 2 1 1 . . . . . . . parse_system 2 | . . . . . . 1 1 . . . . . . . no_distress 1 | . . . . . 1 . . . . . . . . . find_fabricator 1 | . . . . . 1 . . . . . . . . . Relay Couplers Released . | . . . . . . . . . . . . . . . Fabnet Peak Effective % . | . . . . . . . . . . . . . . . Robots Rewired 4 | . . . . 2 . . 2 . . . . . . . Allies Hacked 1 | . . . . . . . . . . . . . . 1 Hacks Repelled . | . . . . . . . . . . . . . . . Allies | -11 -10 -9 -8 -8 -7 -6 -6 -6 -5 -5 -5 -5 -4 -4 -------- Run | Yrd Mat Mat Mat Sto Fac Fac Low Low Fac Upp Upp Zhi Pro Fac Total Allies 21 | . . . . 12 . . 2 . 6 . . . . 1 Largest Group 10 | . . . . 10 5 . 2 . 4 1 . . . 1 Highest-Rated Group 173 | . . . . 173 93 . 49 . 80 19 . . . 93 Highest-Rated Ally 93 | . . . . 31 29 . 29 . 26 19 . . . 93 Total Orders 7 | . . . . . 4 . 2 . . . . . . 1 ROAM 1 | . . . . . . . 1 . . . . . . . FOLLOW 1 | . . . . . . . 1 . . . . . . . EXPLORE 5 | . . . . . 4 . . . . . . . . 1 Ally Attacks 152 | . . . . 95 48 . 1 . 8 . . . . . Total Damage 2001 | . . . . 1146 600 . 18 . 237 . . . . . Kills 25 | . . . . 16 8 . . . 1 . . . . . Allies Corrupted 1 | . . . . . 1 . . . . . . . . . Allies Melted . | . . . . . . . . . . . . . . . Intel | -11 -10 -9 -8 -8 -7 -6 -6 -6 -5 -5 -5 -5 -4 -4 ------- Run | Yrd Mat Mat Mat Sto Fac Fac Low Low Fac Upp Upp Zhi Pro Fac Active Infowar (turns) 16266 | 90 158 285 397 1783 3863 770 1816 174 1544 1713 922 333 1165 1253 Optics 15733 | . . . 397 1783 3863 770 1816 174 1544 1713 922 333 1165 1253 Sensors 11593 | . . . . . 3094 770 1816 174 1544 1713 922 333 1125 102 Terrain 3697 | . . . 396 . 683 741 1816 . . . . . . 61 Traps 4920 | . . . . 1783 2054 770 313 . . . . . . . Seismic 533 | 90 158 285 . . . . . . . . . . . . Jamming 1295 | . . . . . . . . . . . . . 614 681 Robot Analysis Total 6 | . . . . . 2 . . . . . . 4 . . Derelict Logs Recovered 6 | . . . . . . . 1 . . 2 . . 3 . Drone Launches 6 | . . . . . 4 . . . . . . . . 2 Drone Recoveries 2 | . . . . . 2 . . . . . . . . . Exploration | -11 -10 -9 -8 -8 -7 -6 -6 -6 -5 -5 -5 -5 -4 -4 ------------- Run | Yrd Mat Mat Mat Sto Fac Fac Low Low Fac Upp Upp Zhi Pro Fac Turns Passed 17510 | 187 158 1280 397 1894 3863 770 1816 174 1544 1713 922 333 1165 1294 Spaces Moved 10837 | 110 115 908 215 1066 2124 476 1341 126 861 1246 509 219 960 561 Core 60 | 2 . . . . . . . . . . . . . 58 Treads . | . . . . . . . . . . . . . . . Legs 10295 | 108 115 609 215 1066 2124 476 1341 126 861 1246 509 219 960 320 Wheels . | . . . . . . . . . . . . . . . Hover 482 | . . 299 . . . . . . . . . . . 183 Flight . | . . . . . . . . . . . . . . . Fastest Speed 48 | 50 120 48 120 120 118 118 115 115 108 107 107 105 105 50 Average Speed 119 | 123 120 97 120 120 119 121 118 117 132 107 144 143 109 143 Slowest Speed 600 | 190 120 260 120 120 122 122 123 385 183 108 175 175 175 600 Overloaded Moves . | . . . . . . . . . . . . . . . Propulsion Burnouts . | . . . . . . . . . . . . . . . Robots Hopped . | . . . . . . . . . . . . . . . Potential Cave-ins . | . . . . . . . . . . . . . . . Cave-ins Triggered . | . . . . . . . . . . . . . . . Teleports 1 | . . . . . . . . . . . . 1 . . Exploration Rate (%) 48 | 6 25 62 23 97 55 9 98 21 22 92 61 62 89 8 Regions Visited 14 Branch Regions 7 Pre-discovered Areas 6 | . . . . . . . 1 . . . . 3 2 . Known Exits Taken 9 | . . . . . 1 1 1 1 1 1 1 1 1 . Unknown Exits Taken 5 | 1 1 1 1 1 . . . . . . . . . . Scrap Searched 14 | . . . . . . . 5 2 . 2 . . 5 . Spaces Dug . | . . . . . . . . . . . . . . . Terrain Destroyed 576 | . . 43 . 77 93 55 79 . 130 83 . . 3 13 Melee . | . . . . . . . . . . . . . . . Projectile 53 | . . . . 1 11 7 7 . 9 7 . . 3 8 AOE 523 | . . 43 . 76 82 48 72 . 121 76 . . . 5 Terrain Rammed . | . . . . . . . . . . . . . . . Walls Destroyed . | . . . . . . . . . . . . . . . Machines Disabled . | . . . . . . . . . . . . . . . Actions | -11 -10 -9 -8 -8 -7 -6 -6 -6 -5 -5 -5 -5 -4 -4 --------- Run | Yrd Mat Mat Mat Sto Fac Fac Low Low Fac Upp Upp Zhi Pro Fac Total 14345 | 141 134 1130 288 1482 3255 641 1483 143 1181 1535 684 243 1051 954 Wait 2294 | . . 56 10 165 913 139 59 . 237 224 159 . 56 276 Move 10823 | 109 114 907 214 1065 2123 475 1340 125 860 1245 508 218 959 561 Hop . | . . . . . . . . . . . . . . . Pick Up 98 | 4 10 9 6 10 19 4 5 2 6 3 1 6 4 9 Fast Attach 62 | 8 . 5 6 12 5 . 2 2 3 2 . 1 1 15 Attach 67 | . . 7 4 4 6 2 6 1 4 4 3 6 3 17 Detach 17 | 1 . . . . 1 . . 1 1 . 2 4 2 5 Swap 168 | 1 1 7 6 54 44 3 17 1 14 10 2 2 3 3 Drop 108 | 1 5 9 4 37 21 3 . 4 11 2 . 6 3 2 Fire 505 | 17 4 37 24 81 103 15 48 7 40 44 6 . 20 59 Melee 197 | . . 93 14 54 17 . 6 . 5 1 . . . 7 Ram . | . . . . . . . . . . . . . . . Kick 3 | . . . . . 3 . . . . . . . . . Crush . | . . . . . . . . . . . . . . . Escape Stasis . | . . . . . . . . . . . . . . . Rewire 3 | . . . . . . . . . . . 3 . . . Trap . | . . . . . . . . . . . . . . . Miscellaneous . | . . . . . . . . . . . . . . . Route ------- -11/Scrapyard -10/Materials -9/Materials -8/Materials -8/Storage -7/Factory -6/Factory (discovered 2 exits: *Low / *Ext) -6/Lower Caves -6/Lower Caves -5/Factory (discovered 5 exits: Fac x4 / *Upp) -5/Upper Caves -5/Upper Caves -5/Zhirov -4/Proximity Caves -4/Factory (discovered 1 exit: Upp) History --------- Turn | Location | Event 37 | -11/Scrapyard | Discovered new exit (range 14) 188 | -11/Scrapyard | Entered Materials 308 | -10/Materials | Discovered new exit (range 16) 309 | -10/Materials | Build established: Mutant 346 | -10/Materials | Entered another Materials area 346 | -9/Materials | Evolved 2 slots: Propulsion x2 675 | -9/Materials | Lost 4 parts (3n1u) 860 | -9/Materials | Discovered new exit (range 14) 1545 | -9/Materials | Repaired Flail 1626 | -9/Materials | Entered another Materials area 1626 | -8/Materials | Evolved 2 slots: Utility x2 1721 | -8/Materials | Discovered new exit (range 15) 1785 | -8/Materials | Build established: Scavenger-Mutant 2023 | -8/Materials | Entered Storage 2032 | -8/Storage | Garrison activated, responded to threat 2127 | -8/Storage | Lost 3 parts (1p1n1u) 2262 | -8/Storage | Met a pair of Derelict thieves 3267 | -8/Storage | Assisted by bots powering up and referring to "LRC-V3" 3507 | -8/Storage | Discovered new exit (range 18) 3564 | -8/Storage | Build established: Commander-Mutant 3716 | -8/Storage | Repaired Lgt. Armor Plating 3917 | -8/Storage | Entered Factory 3917 | -7/Factory | Accompanied by 5 allies 3917 | -7/Factory | Evolved 2 slots: Utility x2 4251 | -7/Factory | Fabricated Myomer Leg (x2) 4349 | -7/Factory | Build established: Scavenger-Skirmisher 4815 | -7/Factory | Repaired Carbon-fiber Leg 5248 | -7/Factory | Repaired Enh. Autogun 5655 | -7/Factory | Build established: Hacker-Skirmisher 6825 | -7/Factory | Repaired Hvy. Missile Launcher 7681 | -7/Factory | Discovered new exit (range 4) 7690 | -7/Factory | Identified exit to Factory 7780 | -7/Factory | Entered another Factory area 7780 | -6/Factory | Evolved 2 slots: Power x1, Utility x1 8276 | -6/Factory | Discovered new exit (range 6) 8280 | -6/Factory | Identified exit to Extension 8540 | -6/Factory | Discovered new exit (range 3) 8549 | -6/Factory | Identified exit to Lower Caves 8550 | -6/Factory | Entered Lower Caves 8551 | -6/Lower Caves | Encountered a Warlord checkpoint 8710 | -6/Lower Caves | Learned location of Extension (-6) 8819 | -6/Lower Caves | Spotted B-75 Beast 8919 | -6/Lower Caves | Destroyed B-75 Beast 9085 | -6/Lower Caves | Attracted the attention of an 0b10 outpost 9155 | -6/Lower Caves | Lost 3 parts (2n1w) 9630 | -6/Lower Caves | Attracted the attention of an 0b10 checkpoint 9688 | -6/Lower Caves | Lost 3 parts (1p1n1w) 10352 | -6/Lower Caves | Discovered new exit (range 5) 10365 | -6/Lower Caves | Identified exit to Lower Caves 10366 | -6/Lower Caves | Entered another Lower Caves area 10438 | -6/Lower Caves | Discovered new exit (range 17) 10452 | -6/Lower Caves | Acquired the password to a Derelict Tinkerer's latest research 10460 | -6/Lower Caves | Found Prototype Special Weapon 10462 | -6/Lower Caves | Identified Molecular Deconstructor 10500 | -6/Lower Caves | Identified exit to Factory 10532 | -6/Lower Caves | Caught by Unaware searching for contraband prototypes 10539 | -6/Lower Caves | Caught by Unaware searching for contraband prototypes 10540 | -6/Lower Caves | Entered Factory 10540 | -5/Factory | Evolved 2 slots: Utility x2 11195 | -5/Factory | Fabricated L-31 Rogue (x3) 11294 | -5/Factory | Lost 3 allies 12072 | -5/Factory | Identified exit to Factory 12079 | -5/Factory | Discovered new exit (range 5) 12083 | -5/Factory | Identified exit to Upper Caves 12084 | -5/Factory | Entered Upper Caves 12084 | -5/Upper Caves | Accompanied by 1 ally 12137 | -5/Upper Caves | Build established: Scavenger-Skirmisher 12316 | -5/Upper Caves | Learned 4 Factory zone layouts 12327 | -5/Upper Caves | Learned location of 1 exit from Factory 12838 | -5/Upper Caves | Encountered a Warlord checkpoint 12954 | -5/Upper Caves | Spotted B-75 Beast 13766 | -5/Upper Caves | Discovered new exit (range 6) 13796 | -5/Upper Caves | Identified exit to Upper Caves 13797 | -5/Upper Caves | Entered another Upper Caves area 14125 | -5/Upper Caves | Attracted the attention of an 0b10 checkpoint 14550 | -5/Upper Caves | Discovered new exit (range 10) 14562 | -5/Upper Caves | Identified exit to Zhirov 14719 | -5/Upper Caves | Entered Zhirov 14719 | -5/Zhirov | Discovered new exit (range 3) 14721 | -5/Zhirov | Identified exit to Proximity Caves 14751 | -5/Zhirov | Met Zhirov 14845 | -5/Zhirov | Learned location of Quarantine (-3) 14845 | -5/Zhirov | Learned location of Testing (-2) 14845 | -5/Zhirov | Learned location of Command (-1) 14856 | -5/Zhirov | Zhirov requested help retrieving the SGEMP Prototype 14923 | -5/Zhirov | Found Alien Artifact 14924 | -5/Zhirov | Identified Integrated Dissipator 14924 | -5/Zhirov | Installed Integrated Dissipator, increased core heat dissipation (+20) 14943 | -5/Zhirov | Found Alien Artifact 14944 | -5/Zhirov | Identified Transdimensional Reconstructor 14944 | -5/Zhirov | Warped through subspace 15042 | -5/Zhirov | Build established: Scavenger-Mutant 15052 | -5/Zhirov | Entered Proximity Caves 15431 | -4/Proximity Caves | Learned location of Armory (-4) 16094 | -4/Proximity Caves | Spotted B-86 Titan 16217 | -4/Proximity Caves | Entered Factory 16217 | -4/Factory | Evolved 2 slots: Propulsion x1, Utility x1 16218 | -4/Factory | Identified exit to Upper Caves 16526 | -4/Factory | Lost 3 parts (1p1u1w) 16759 | -4/Factory | Fabricated A-27 Freighter? 16780 | -4/Factory | Build established: Hacker-Mutant 16950 | -4/Factory | Core integrity fell below 50% 17002 | -4/Factory | Lost 18 parts (3p4n7u4w) 17369 | -4/Factory | Lost 3 parts (2p1n) 17448 | -4/Factory | Core integrity fell below 20% 17470 | -4/Factory | Released all parts (4) 17497 | -4/Factory | Lost 11 parts (2p2n3u4w) 17511 | -4/Factory | Destroyed by G-67 Veteran with Plasma Rifle Last Messages --------------- Imp. Medium Armor Plating destroyed. Critical hit (Burn: +37). Penetrated by Slug. DCYZKP8C/AAS LNDKJH|ULCA=KT7N Acquired Unknown Special Weapon. Identified Mining Laser. Critical hit (Burn: +37). Mining Laser destroyed. Rnf. Fission Core destroyed. System corrupted: Heat flow error (+176). Released Adv. Targeting Computer. Released Visual Processing Unit. Released Imp. Signal Interpreter. Released Adv. Targeting Computer. [Achievement: Live, Flee, And Rebuild] Acquired Myomer Leg. System corrupted: Energy discharge (-37). Acquired 10 matter. [Achievement: This Is Interesting...] [Achievement: Achiever] Map ----- +----------------------------------------------------+ | ?????????????????????????# """"""" # ##+ | | ??????????????????????" ?# ! """"""" # | | ?????????????????????????#! """"""" # | | ?????????????????????????# """"""" + | | ?????????????????????????# # | | ?????????????????????????# # | | ??????????????????????"??# # %#####+ | | ?????????????????????????# " " # ## | | ???????????????????####### "G" # ## " | | ???????????????????#| ## """ # ##== " | | ???????????#???????# ## " "! " | | ????######## ??????# ###########+### %##% | | ???# ####### #???###???# #?# !## " | | ??? # #?### ########## ### " | | ??? ###+#### ] # ### " | | ?? / = # #?#! | | ?? ggg# % !!!# ###"#+# | | ? # """ """ !! # ##### # | | ? # """ """ !! # = #??## # | | ? ### # """ """ # =%#?#?# # | | ? #?# # / ==#???# # | | ? #?# # """ # #??## # | | ?? #?# # " " """ # #?### # | | ?? #### #?# # "R" """ # #?# | | ???????# #?# %# """ !# ### "" | | ???????# ######@# # T" | | ???????# # # ############## ### | | ???????############# !;%%%%[ #?# | | ???????????????????#" #[##################?##### | | ???????????????????#" ###??????????????????????? | | ???????????????????#" #????????????????????????? | | ???????????????????# #????????????????????????? | | ???????????????????######????????????????????????? | | ?????????????????????????????????????????????????? | | | | | | | | | | | | | | | | | | | | | | | | | | | | | | | | | +----------------------------------------------------+ Best States ------------- Heat Dissipation 101 Energy Generation 40 Energy Capacity 525 Matter Stores 300 Matter Capacity 300 Sight Range 18 Robot Scan Range 16 Terrain Scan Range 20 Terrain Scan Density 210 Jamming Range 16 Power Amplification 30 Corruption Block 8 Armor Coverage 450 Resistance: KI 20 Resistance: TH 35 Resistance: EX 20 Resistance: EM 20 Resistance: I 20 Resistance: S 20 Resistance: P 20 Propulsion Shielding 90 Evasion (%) 70 Targeting Accuracy 28 Core Analysis 6 Matter Filtering 30 Offensive Hacking 22 Defensive Hacking 14 Item Schematics ----------------- Flexi-carbon Leg | -5/Factory | Scanalyzed Imp. Cloaking Device | -5/Factory | Hacked Assault Drone Bay | -5/Zhirov | Free Exp. Heat Sink | -5/Zhirov | Free Exp. Optical Array | -5/Zhirov | Free Imp. Arc Thrower | -5/Zhirov | Free Robot Schematics ------------------ L-31 Rogue | -7/Factory | Hacked Fabricated ------------ Myomer Leg | x2 | -7/Factory | Preloaded L-31 Rogue | x3 | -5/Factory A-27 Freighter | x1 | -4/Factory | Preloaded Repaired ---------- Flail | 35% | -9/Materials Lgt. Armor Plating | 33% | -8/Storage Carbon-fiber Leg | 68% | -7/Factory Enh. Autogun | 58% | -7/Factory Hvy. Missile Launcher | 28% | -7/Factory Studied --------- Hover Unit | -9/Materials | Hacked Imp. Ion Engine | -9/Materials | Hacked Imp. Hover Unit | -9/Materials | Hacked Carbon-fiber Leg | -7/Factory | Hacked Gauss Cannon | -7/Factory | Hacked Flexi-carbon Leg | -5/Factory | Hacked Imp. Titanium Leg | -5/Factory | Hacked Alien Tech Used ----------------- Integrated Dissipator Transdimensional Reconstructor Achievements -------------- Achiever Alien Tech Analysis Probe Deconstruction Live, Flee, And Rebuild Recruitment Drive Subspace Traveler The Science Guy This Is Interesting... Challenges ------------ None Game ------ Seed SingularityNeutrinoMount Manual? 0 Play Time 03:55:25 Cumulative 51.7 hours Start 2026.08.21 @ 23:59:33 End 2026.08.22 @ 05:33:02 Sessions 2 Manual Loads 0 Difficulty Adventurer Special Mode None Game No. 33 Rogue 0 Adventurer 33 Explorer 0 Win Type - Total 0 Types 0/0/0/0/0/0/0/0/0/0 Lore% 26 Gallery% 31 Achievement% 26 Wizard Run 0 Options --------- Layout 2 ASCII 0 Keyboard 0 Movement Arrows Keybinds 0 Fullscreen 1 Font 16/Terminus Map View 55x47 Zoom Use 1% Tactical HUD 0 Map Filters NONE Filters NONE Steam 1 RUN: f9cc62c1-60fc-49b4-8bbe-79fef68d8b53